Cogmind - Beta 16 @@@ ROGUE MODE // 2025.10.25 @ 01:01:14 Player: taku_the_hopeless Result: Destroyed by B-75 Beast with Heavy Machine Gun Performance ------------- Evolutions (4) 2000 Regions Visited (11) 2200 Robots Destroyed (190) 950 Value Destroyed (6028) 6028 Prototype IDs (28) 560 Alien Tech Used (0) 0 Bonus (1470) 1470 TOTAL SCORE: 13208 Bonus ------- High Alert Combat Kills 370 Entered DSFs 500 Aligned with FarCom 300 Acquired ECA 300 Cogmind --------- Core Integrity 0/850 Matter 101/300 Energy 100/100 System Corruption 11% Temperature Cool (0) Movement Core (50) Location -6/Lower Caves Parts ------- > --- POWER (1) -------- (None) > --- PROPULSION (5) --- (None) > --- UTILITY (6) ------ Advanced Terrain Scanner Advanced Terrain Scan Processor Encrypted Comm Array Advanced Targeting Computer Hacking Suite > --- WEAPON (3) ------- (None) > --- INVENTORY (5) ---- Potential Leg Potential Leg Matter Compressor (0) Advanced ECM Suite Proton Cannon Peak State ------------ > --- POWER ------------ Light Angular Momentum Engine > --- PROPULSION ------- Carbon-fiber Leg Carbon-fiber Leg Carbon-fiber Leg Flexi-carbon Leg Armored Leg > --- UTILITY ---------- High-capacity Storage Unit Advanced Targeting Computer Improved Reaction Control System Medium Reactive Plating Hacking Suite Hacking Suite > --- WEAPON ----------- Enhanced Autogun Heavy Machine Gun Improved Heavy Machine Gun > --- INVENTORY -------- Light Angular Momentum Engine Armored Leg Potential Leg Potential Leg Improved Coolant Injector Advanced Terrain Scanner Advanced Terrain Scan Processor Transmission Jammer Advanced ECM Suite Hardened Medium Armor Plating Medium Reactive Plating Hardlight Generator Long-range Tractor Beam Phase Cannon Heavy Machine Gun Improved Heavy Machine Gun Heavy Flak Cannon Heavy Flak Cannon Heavy Flak Cannon Mini Grenade Launcher [Rating: 68] Favorites ----------- Power Light Nuclear Core Engine Light Angular Momentum Engine Power Core Light Nuclear Core Propulsion Light Treads Treads Light Treads Leg Flexi-carbon Leg Wheel Armored Wheel Flight Unit VTOL Module Utility Large Storage Unit Device Improved Heat Sink Storage Large Storage Unit Processor Advanced Targeting Computer Hackware Hacking Suite Protection Light Armor Plating Weapon Enhanced Autogun Energy Gun Beamcaster Energy Cannon Phase Cannon Ballistic Gun Enhanced Autogun Ballistic Cannon Heavy Flak Cannon Launcher Mini Grenade Launcher Impact Weapon Hammer Slashing Weapon Katana Build | -11 -10 -10 -10 -9 -8 -7 -7 -6 -6 -6 -6 ------- Run | Yrd Mat Min Exi Min Mat Fac DSF Fac Was Fac Low Slots Evolved 8 | . . . . . 4 2 . 2 . . . Power . | . . . . . . . . . . . . Propulsion 3 | . . . . . 1 2 . . . . . Utility 4 | . . . . . 3 . . 1 . . . Weapon 1 | . . . . . . . . 1 . . . Parts Attached 148 | 6 3 5 1 2 60 . 12 22 . 32 5 Power 13 | . . 1 . . 6 . 1 3 . 2 . Engine 7 | . . 1 . . 1 . . 3 . 2 . Core 6 | . . . . . 5 . 1 . . . . Reactor . | . . . . . . . . . . . . Propulsion 50 | 2 2 1 1 . 21 . 6 5 . 11 1 Treads 22 | . 2 1 1 . 18 . . . . . . Leg 24 | 2 . . . . 1 . 6 5 . 10 . Wheel 3 | . . . . . 2 . . . . 1 . Hover . | . . . . . . . . . . . . Flight 1 | . . . . . . . . . . . 1 Utility 48 | 1 . 1 . 2 17 . 4 8 . 12 3 Device 24 | 1 . . . 1 10 . 2 3 . 5 2 Storage 4 | . . 1 . . . . . 1 . 2 . Processor 6 | . . . . . 5 . . . . . 1 Hackware 5 | . . . . . . . . 4 . 1 . Protection 9 | . . . . 1 2 . 2 . . 4 . Artifact . | . . . . . . . . . . . . Weapon 37 | 3 1 2 . . 16 . 1 6 . 7 1 Energy Gun 5 | 2 . . . . 3 . . . . . . Energy Cannon 5 | . . . . . 2 . . 2 . . 1 Ballistic Gun 19 | 1 . 1 . . 8 . 1 3 . 5 . Ballistic Cannon 1 | . . . . . . . . . . 1 . Launcher 5 | . 1 1 . . 1 . . 1 . 1 . Special Weapon . | . . . . . . . . . . . . Impact Weapon 1 | . . . . . 1 . . . . . . Slashing Weapon 1 | . . . . . 1 . . . . . . Piercing Weapon . | . . . . . . . . . . . . Special Melee Weapon . | . . . . . . . . . . . . Unidentified Prototypes 5 | . . . . . 1 . . 4 . . . Parts Lost 51 | . . . . . 18 . 4 6 . 21 2 Power 8 | . . . . . 4 . 1 . . 3 . Propulsion 21 | . . . . . 7 . 2 3 . 8 1 Utility 16 | . . . . . 5 . 1 3 . 6 1 Weapon 6 | . . . . . 2 . . . . 4 . Highest Loss Streak 12 | . . . . . 6 . 2 2 . 12 1 To Critical Strikes . | . . . . . . . . . . . . Average Backups 14 | 3 5 9 12 12 14 14 14 14 15 16 4 Power . | 1 . . . . . . . . 1 . . Propulsion 2 | 1 2 3 4 4 3 2 2 2 2 2 2 Utility 6 | . . 2 3 3 7 9 8 6 8 8 1 Weapon 4 | . 1 3 5 5 3 3 4 4 4 4 . Tool/Special . | . . . . . . . . . . . . Unused Backups 26 | . 3 . 2 . 2 1 2 4 . 8 4 Power 2 | . 2 . . . . . . . . . . Propulsion 6 | . . . 2 . . . . . . 2 2 Utility 12 | . 1 . . . . 1 2 3 . 3 2 Weapon 6 | . . . . . 2 . . 1 . 3 . Tool/Special . | . . . . . . . . . . . . Average Slot Usage (%) 92 | . 56 77 100 100 94 92 92 99 100 97 31 Engine 3 | . . 7 14 14 . . . 4 6 5 . Core 2 | . . . . . 6 7 3 1 . . . Treads 13 | . 19 28 28 28 24 30 21 . . . . Leg 14 | . 8 . . . . . 13 32 33 29 . Wheel 1 | . . . . . 1 . . . . 2 . Device 12 | . 13 14 14 12 16 15 9 9 13 7 11 Storage 7 | . . 7 14 14 9 7 7 6 6 5 . Processor 7 | . . . . . 10 15 7 6 6 6 11 Hackware 5 | . . . . . . . . 11 13 11 6 Protection 4 | . . . . 1 7 . 11 4 . 5 . Energy Gun 1 | . . . . . 3 . . . . . . Energy Cannon 2 | . . . . . 3 . . 2 6 1 . Ballistic Gun 14 | . 13 17 28 28 9 15 15 15 13 17 . Peak Build Rating 68 | 5 4 14 16 17 38 39 50 64 63 68 27 Average Rating 40 | 3 3 9 15 16 28 38 40 58 63 62 21 On Entrance 26 | . 4 4 14 16 16 36 39 50 63 63 12 Avg Prop Armor Cover (%) 16 | 21 27 29 . . 15 . 4 3 . 2 . Naked Turns . | . . . . . . . . . . . . Heaviest Build 90 | 4 3 35 35 37 45 33 54 64 52 90 1 Greatest Support 91 | 3 20 40 40 40 66 80 80 86 86 91 4 Greatest Overweight (x) 2 | 1 . . . . 2 . 1 . . 2 . Average Overweight (x) . | . . . . . . . . . . . . Largest Inventory Capacity 25 | 5 5 15 15 15 15 15 15 25 15 20 5 Average Capacity 14 | 5 5 10 15 15 15 15 15 15 15 16 5 Most Carried 20 | 5 5 15 15 15 15 15 15 15 15 20 5 Average Carried 14 | 3 4 10 14 13 14 14 14 14 15 16 4 Final Capacity 15 | 5 5 15 15 15 15 15 15 15 15 5 5 Final Carried 15 | 5 5 15 14 13 15 15 15 15 15 5 5 Class Distribution -------------------- 37% | Scavenger-Mutant 29% | Scavenger-Tank 19% | Mutant 8% | Hacker-Tank 3% | Tank Dominant Class ---------------- Mutant | -10/Materials Mutant | -10/Mines Scavenger-Mutant | -10/Exiles Scavenger-Mutant | -9/Mines Scavenger-Mutant | -8/Materials Scavenger-Mutant | -7/Factory Scavenger-Mutant | -7/DSF Scavenger-Tank | -6/Factory Scavenger-Tank | -6/Waste Scavenger-Tank | -6/Factory Mutant | -6/Lower Caves Resources | -11 -10 -10 -10 -9 -8 -7 -7 -6 -6 -6 -6 ----------- Run | Yrd Mat Min Exi Min Mat Fac DSF Fac Was Fac Low Matter Collected 5557 | 126 54 243 . 110 1606 . 397 961 . 1928 132 Remotely 14 | . . . . . . . . . . 14 . Salvage Created 7327 | 136 62 33 . . 3094 . 405 996 . 2601 . Parts 395 | 7 5 9 . . 163 . 23 52 . 136 . Haulers Intercepted 7 | . . . . . 5 . . . . 2 . Recyclers Shooed 12 | . 1 1 . . 2 . . 4 . 4 . Parts Field Recycled . | . . . . . . . . . . . . Retrieved Matter . | . . . . . . . . . . . . Parts Self-Destructed 2 | . . . . . . . . . . . 2 Prevented . | . . . . . . . . . . . . Parts Restored . | . . . . . . . . . . . . Kills | -11 -10 -10 -10 -9 -8 -7 -7 -6 -6 -6 -6 ------- Run | Yrd Mat Min Exi Min Mat Fac DSF Fac Was Fac Low Combat Hostiles Destroyed 125 | . 4 6 . . 53 . 9 15 . 38 . Melee 5 | . . 1 . . 4 . . . . . . Guns 89 | . . . . . 41 . 9 10 . 29 . Cannons 8 | . . . . . 7 . . . . 1 . AOE 21 | . 4 5 . . . . . 4 . 8 . Classes Destroyed 15 | 2 3 1 . . 7 . 2 . . . . Worker 18 | . 1 . . . 8 . . 2 . 7 . Builder 9 | . . 1 . . 4 . . 2 . 2 . Tunneler 7 | 4 . . . . 1 . . . . 2 . Hauler 7 | . . . . . 5 . . . . 2 . Recycler 11 | 1 1 . . . 3 . . 2 . 4 . Operator 4 | . . . . . 3 . . . . 1 . Watcher 9 | . . . . . 3 . . 1 . 5 . Swarmer 32 | . 3 6 . . 11 . 3 . . 9 . Grunt 48 | . 1 . . . 30 . 2 5 . 10 . Duelist 5 | . . . . . 1 . . 4 . . . Sentry 17 | . . . . . 9 . . 3 . 5 . Specialist 3 | . . . . . . . 3 . . . . Hunter 6 | . . . . . 1 . . . . 5 . Programmer 13 | . . . . . . . 1 3 . 9 . Heavy 1 | . . . . . 1 . . . . . . Best Kill Streak 14 | 5 4 4 . . 14 . 3 5 . 6 . Combat Bots Only 14 | . 4 3 . . 14 . 3 5 . 5 . Max Kills in Single Turn 6 | 1 2 3 . . 2 . 1 2 . 6 . Gunslinging 1 | . . . . . 1 . . . . . . Exploded 3 | . 2 3 . . . . . 2 . 3 . Melee 1 | . . 1 . . 1 . . . . . . Uniques/NPCs Destroyed . | . . . . . . . . . . . . Combat | -11 -10 -10 -10 -9 -8 -7 -7 -6 -6 -6 -6 -------- Run | Yrd Mat Min Exi Min Mat Fac DSF Fac Was Fac Low Hostile Shots Fired 1215 | . 5 29 . . 323 . 85 120 . 632 21 Missed 404 | . 1 8 . . 89 . 18 44 . 236 8 Hits 811 | . 4 21 . . 234 . 67 76 . 396 13 Melee 10 | . . . . . 2 . . 8 . . . Projectile 801 | . 4 21 . . 232 . 67 68 . 396 13 Critical Strikes 31 | . . . . . 11 . 3 6 . 11 . Part Disruptions 2 | . . . . . . . . . . 2 . Damage Taken 10257 | . 30 190 . . 3387 . 1106 851 . 4488 205 Core 1443 | . 7 12 . . 420 . 137 89 . 646 132 Absorbed by Shields 845 | . . . . . 66 . 202 235 . 342 . Ignored by Resistances 918 | . . . . . . . 207 21 . 690 . Regen/Repaired (Parts) 261 | . . . . . 36 . . . . 225 . Core Remaining (%) 73 | 100 . . . 92 23 . 80 . . . . Volleys Fired 569 | 13 27 6 . . 246 . 36 79 4 158 . Largest 3 | 2 1 1 . . 2 . 2 3 1 3 . Hottest 140 | 60 30 30 . . 135 . 50 140 85 135 . Shots Fired 1169 | 26 27 6 . . 468 . 67 163 4 408 . Gun 1018 | 26 21 2 . . 390 . 67 132 . 380 . Cannon 128 | . . . . . 76 . . 27 4 21 . Launcher 23 | . 6 4 . . 2 . . 4 . 7 . Special . | . . . . . . . . . . . . Kinetic 931 | 13 21 2 . . 316 . 67 128 . 384 . Thermal 215 | 13 . . . . 150 . . 31 4 17 . Explosive 23 | . 6 4 . . 2 . . 4 . 7 . Electromagnetic . | . . . . . . . . . . . . Robot Hit Streak 26 | 6 3 5 . . 26 . 13 10 . 15 . Robot Miss Streak 7 | 3 4 1 . . 5 . 3 3 . 7 . Penetration Max . | . . . . . . . . . . . . Secondary Targets 15 | . . . . . 7 . 1 2 . 5 . Max Gunslinging Chain 1 | . . . . . 1 . 1 1 . 1 . Shots Hit Robots 780 | 15 12 3 . . 347 . 47 99 . 257 . Core Hits 351 | 6 7 10 . . 139 . 16 51 . 122 . Critical Kills 5 | . . . . . 2 . . 2 . 1 . Critical Parts Destroyed 7 | . . . . . . . . . . 7 . Critical Strikes 15 | . . . . . 5 . . 2 . 8 . Burn 3 | . . . . . 3 . . . . . . Meltdown 1 | . . . . . . . . 1 . . . Destroy 10 | . . . . . 1 . . 1 . 8 . Smash 1 | . . . . . 1 . . . . . . Melee Attacks 17 | . . . . . 17 . . . . . . Impact 10 | . . . . . 10 . . . . . . Slashing 7 | . . . . . 7 . . . . . . Piercing . | . . . . . . . . . . . . Sneak Attacks 4 | . . . . . 4 . . . . . . Combat Hostiles . | . . . . . . . . . . . . Follow-up Attacks . | . . . . . . . . . . . . Damage Inflicted 18300 | 196 411 395 . . 5946 . 850 2955 . 7541 6 Guns 12293 | 196 132 12 . . 4225 . 850 1631 . 5247 . Cannons 1697 | . . . . . 1184 . . 315 . 198 . Explosions 3427 | . 272 372 . . . . . 942 . 1841 . Melee 435 | . . . . . 435 . . . . . . Ramming 448 | . 7 11 . . 102 . . 67 . 255 6 Kinetic 11313 | 105 132 12 . . 3266 . 850 1611 . 5337 . Thermal 3499 | 91 . . . . 2143 . . 335 . 930 . Explosive 2605 | . 272 372 . . . . . 942 . 1019 . Electromagnetic . | . . . . . . . . . . . . Impact 91 | . . . . . 91 . . . . . . Slashing 344 | . . . . . 344 . . . . . . Piercing . | . . . . . . . . . . . . Highest Corruption 11 | . . . . . 2 . 3 . . 6 11 Average Corruption 3 | . . . . . 2 . 2 . . 3 10 Corruption Purged . | . . . . . . . . . . . . Corruption Blocked . | . . . . . . . . . . . . Effects 71 | . . . . . 32 . 3 . . 28 8 Message Errors 16 | . . . . . 8 . 1 . . 3 4 Matter Fused 13 | . . . . . 4 . 1 . . 6 2 Heat Flow Errors 10 | . . . . . 5 . . . . 4 1 Energy Discharges 9 | . . . . . 4 . 1 . . 3 1 Parts Rejected 2 | . . . . . 1 . . . . 1 . Parts Fused 3 | . . . . . 2 . . . . 1 . Data Loss (minor) 6 | . . . . . 3 . . . . 3 . Misfires 3 | . . . . . 1 . . . . 2 . Alerts 4 | . . . . . 2 . . . . 2 . Weapon Failures 5 | . . . . . 2 . . . . 3 . Overload Shots . | . . . . . . . . . . . . Overflow Damage 149 | . 5 7 . . 35 . . 5 . 97 . Projectiles 22 | . . . . . 17 . . 5 . . . Explosions 66 | . 5 7 . . . . . . . 54 . Melee 61 | . . . . . 18 . . . . 43 . Knockbacks 4 | . . . . . 2 . . . . 2 . Impact 4 | . . . . . 2 . . . . 2 . Kinetic . | . . . . . . . . . . . . Secondary . | . . . . . . . . . . . . Self-Inflicted Damage 38 | . . 26 . . 9 . . . . . 3 Shots 1 | . . 1 . . . . . . . . . Rammed 39 | . 11 11 . . 16 . . . . . 1 Targets Rammed 59 | . 13 12 . . 18 . . 4 . 11 1 Kicked 15 | . . . . . . . . 4 . 11 . Crushed 5 | . 2 1 . . 2 . . . . . . Highest Temperature 229 | 15 . . . . 229 . 130 220 78 201 219 Average Temperature 55 | 10 . . . . 32 . 66 70 35 59 120 Received Heat Transfer 2635 | . . . . . 1311 . 81 226 . 1017 . Siege Activations . | . . . . . . . . . . . . Martial Activations . | . . . . . . . . . . . . Shielding Activations . | . . . . . . . . . . . . Robots Disrupted . | . . . . . . . . . . . . Combat Hostiles . | . . . . . . . . . . . . Robots Corrupted 2 | . . . . . . . . . . 2 . Combat Hostiles . | . . . . . . . . . . . . Parts Fried 2 | . . . . . . . . . . 2 . Impact Corruptions 4 | . . . . . . . . . . 3 1 Robots Melted 2 | . . . . . 1 . . 1 . . . Combat Hostiles 2 | . . . . . 1 . . 1 . . . Parts Melted 8 | . . 1 . . 4 . . 3 . . . Heat Transferred 5362 | 200 . . . . 4144 . . 407 . 611 . Parts Sabotaged . | . . . . . . . . . . . . Parts Stolen . | . . . . . . . . . . . . Parts Stripped . | . . . . . . . . . . . . Power Chain Reactions . | . . . . . . . . . . . . Alert | -11 -10 -10 -10 -9 -8 -7 -7 -6 -6 -6 -6 ------- Run | Yrd Mat Min Exi Min Mat Fac DSF Fac Was Fac Low Maximum Alert Level 3 | . . . . . 2 1 1 1 . 3 . Low Security (%) 68 | 100 100 100 . 100 51 48 70 97 100 57 . Level 1 17 | . . . . . 33 51 29 2 . 10 . Level 2 12 | . . . . . 15 . . . . 27 . Level 3 . | . . . . . . . . . . 3 . Level 4 . | . . . . . . . . . . . . Level 5 . | . . . . . . . . . . . . High Security . | . . . . . . . . . . . . Max Security . | . . . . . . . . . . . . Sterilizations 2 | . . . . . 1 . 1 . . . . Peak Influence 855 | 10 115 114 . . 648 289 280 216 14 855 . Initial 289 | . 3 3 . . . 289 70 147 14 . . Average 192 | 2 49 38 . . 248 195 160 94 1 280 . Influence Increases 4383 | 25 150 184 . . 1630 18 250 513 3 1595 15 Destroy 0b10 Robot/C 2500 | . 80 120 . . 1060 . 180 300 . 760 . Destroy 0b10 Robot/NC 325 | 25 10 5 . . 135 . . 35 . 115 . Destroy Leader 652 | . 20 20 . . 246 . 40 72 . 254 . Successful Hack 145 | . 21 . . . 14 18 . 7 . 85 . Disable Machine 225 | . . 15 . . 15 . . 60 . 135 . Destroy Structure 221 | . 19 24 . . 25 . . 39 3 111 . Partial Spotted 15 | . . . . . . . . . . 15 . Lose Combat Pursuer 300 | . . . . . 135 . 30 . . 120 15 Influence Decreases 4012 | 20 145 194 . . 992 555 71 752 44 790 449 Entered New Map 848 | . 2 7 . . . 349 31 133 27 . 299 Time Decay 2504 | 20 143 187 . . 662 206 . 559 17 580 130 Lost Part 510 | . . . . . 180 . 40 60 . 210 20 Purge Threat 150 | . . . . . 150 . . . . . . Squads Dispatched 48 | . 1 . . . 10 1 2 13 . 21 . Investigation 9 | . . . . . 2 . . 3 . 4 . Extermination 11 | . . . . . . 1 . 4 . 6 . Reinforcement 15 | . 1 . . . 5 . 2 3 . 4 . Assault . | . . . . . . . . . . . . Garrison 13 | . . . . . 3 . . 3 . 7 . Intercept . | . . . . . . . . . . . . Searches Triggered . | . . . . . . . . . . . . Construction Impeded 5 | . . . . . . . . 2 . 3 . Haulers Reinforced . | . . . . . . . . . . . . Active Scanning Responses . | . . . . . . . . . . . . Cargo Convoy Interrupts . | . . . . . . . . . . . . Stealth | -11 -10 -10 -10 -9 -8 -7 -7 -6 -6 -6 -6 --------- Run | Yrd Mat Min Exi Min Mat Fac DSF Fac Was Fac Low Distress Signals 8 | . 1 . . . 5 . . . . 2 . Communications Jammed . | . . . . . . . . . . . . Distress Signals . | . . . . . . . . . . . . Times Spotted 211 | . 8 6 . . 91 . 10 22 8 63 3 Peak Tracking Total 10 | . 2 3 . . 10 . 3 5 6 8 2 Tactical Retreats 16 | . . . . . 6 . 2 . 1 6 1 Traps | -11 -10 -10 -10 -9 -8 -7 -7 -6 -6 -6 -6 ------- Run | Yrd Mat Min Exi Min Mat Fac DSF Fac Was Fac Low Traps Triggered 5 | . . . . . 2 . . 1 . 2 . Indirectly . | . . . . . . . . . . . . Trap Hack Attempts . | . . . . . . . . . . . . Triggered . | . . . . . . . . . . . . Disarmed . | . . . . . . . . . . . . Reprogrammed . | . . . . . . . . . . . . Reused . | . . . . . . . . . . . . Traps Extracted . | . . . . . . . . . . . . Installed . | . . . . . . . . . . . . Triggered . | . . . . . . . . . . . . Most Traps Carried 2 | . . 2 2 2 2 2 . . . . . Machines | -11 -10 -10 -10 -9 -8 -7 -7 -6 -6 -6 -6 ---------- Run | Yrd Mat Min Exi Min Mat Fac DSF Fac Was Fac Low Machines Disabled 16 | . . 1 . . 2 . . 4 . 9 . Max in Single Turn 5 | . . 1 . . 1 . . 3 . 5 . Garrison Access 3 | . . . . . . . . 1 . 2 . Machines Repaired . | . . . . . . . . . . . . Machines Dismantled . | . . . . . . . . . . . . Machines Sabotaged . | . . . . . . . . . . . . Overloaded Fab Kills . | . . . . . . . . . . . . Hacking | -11 -10 -10 -10 -9 -8 -7 -7 -6 -6 -6 -6 --------- Run | Yrd Mat Min Exi Min Mat Fac DSF Fac Was Fac Low Machines Accessed 50 | . 4 . 1 . 10 4 . 12 . 19 . Terminals 22 | . 3 . . . 5 2 . 5 . 7 . Fabricators 6 | . . . . . . 1 . 2 . 3 . Repair Stations 5 | . . . . . 2 1 . . . 2 . Recycling Units 7 | . 1 . . . 1 . . 2 . 3 . Scanalyzers 5 | . . . . . 2 . . 2 . 1 . Garrison Access 4 | . . . . . . . . 1 . 3 . Total Hacks 125 | . 13 . 1 . 27 6 . 36 . 42 . Successful 71 | . 4 . 1 . 12 3 . 24 . 27 . Failed 54 | . 9 . . . 15 3 . 12 . 15 . Catastrophic 8 | . 2 . . . 2 . . . . 4 . Database Lockouts . | . . . . . . . . . . . . Manual 47 | . 6 . 1 . 10 3 . 9 . 18 . Terminals 56 | . 8 . . . 12 3 . 11 . 22 . Fabricators 13 | . . . . . . 2 . 5 . 6 . Repair Stations 10 | . . . . . 4 1 . . . 5 . Recycling Units 21 | . 5 . . . 6 . . 6 . 4 . Scanalyzers 18 | . . . . . 5 . . 12 . 1 . Garrison Access 6 | . . . . . . . . 2 . 4 . Terminal Hacks 16 | . 1 . 1 . 3 1 . 2 . 8 . Open DSF 2 | . . . . . . 1 . . . 1 . Branch Access Points 1 | . . . . . . . . . . 1 . Terminal Index 2 | . . . . . . . . 1 . 1 . Repair Station Index 1 | . . . . . . . . . . 1 . Unreport Threat 1 | . . . . . 1 . . . . . . Locate Traps 1 | . . . . . . . . . . 1 . Hauler Manifests 3 | . . . . . 1 . . 1 . 1 . Registered Components 2 | . 1 . . . . . . . . 1 . Zone Layout 2 | . . . . . 1 . . . . 1 . Proto ID Catalog 1 | . . . 1 . . . . . . . . Fabricator Hacks 8 | . . . . . . 1 . 2 . 5 . Network Status 3 | . . . . . . 1 . 1 . 1 . Load Schematic 2 | . . . . . . . . . . 2 . Build 3 | . . . . . . . . 1 . 2 . Repair Station Hacks 7 | . . . . . 3 . . . . 4 . Scan Component 4 | . . . . . 2 . . . . 2 . Repair 3 | . . . . . 1 . . . . 2 . Recycling Unit Hacks 10 | . 2 . . . 2 . . 2 . 4 . Process 1 | . 1 . . . . . . . . . . Report Inventory 8 | . 1 . . . 2 . . 2 . 3 . Retrieve Components 1 | . . . . . . . . . . 1 . Scanalyzer 14 | . . . . . 1 . . 12 . 1 . Insert Component 5 | . . . . . . . . 5 . . . Analyze 6 | . . . . . . . . 6 . . . Retrieve Study 3 | . . . . . 1 . . 1 . 1 . Garrison Access Hacks 3 | . . . . . . . . 1 . 2 . Seal Access 3 | . . . . . . . . 1 . 2 . Unauthorized Hacks 13 | . 1 . . . 3 1 . 5 . 3 . Terminals 8 | . 1 . . . 3 1 . 1 . 2 . Botnet 6 | . 1 . . . 2 1 . 1 . 1 . Disrupt 1 | . . . . . 1 . . . . . . Operators 1 | . . . . . . . . . . 1 . Fabricators . | . . . . . . . . . . . . Repair Stations 1 | . . . . . . . . . . 1 . Mechanics 1 | . . . . . . . . . . 1 . Recycling Units 4 | . . . . . . . . 4 . . . Monitor 1 | . . . . . . . . 1 . . . Recyclers 1 | . . . . . . . . 1 . . . Mask 2 | . . . . . . . . 2 . . . Scanalyzers . | . . . . . . . . . . . . Garrison Access . | . . . . . . . . . . . . Data Cores Recovered . | . . . . . . . . . . . . Used . | . . . . . . . . . . . . Hacking Detections 36 | . 4 . . . 8 3 . 9 . 12 . Full Trace Events 8 | . 1 . . . 1 . . 3 . 3 . Feedback Events 1 | . . . . . . . . 1 . . . Hackware Fried 1 | . . . . . . . . 1 . . . Feedback Blocked . | . . . . . . . . . . . . Robot Schematics Acquired . | . . . . . . . . . . . . Robots Built . | . . . . . . . . . . . . Authchips . | . . . . . . . . . . . . Time . | . . . . . . . . . . . . Total Robot Build Rating . | . . . . . . . . . . . . Part Schematics Acquired 5 | . . . . . . . . 5 . . . Parts Built 3 | . . . . . . . . 2 . 1 . Authchips . | . . . . . . . . . . . . Time 198 | . . . . . . . . 53 . 145 . Total Part Build Rating 17 | . . . . . . . . 12 . 5 . Part Studies Acquired 3 | . . . . . 1 . . 1 . 1 . Parts Repaired 3 | . . . . . 1 . . . . 2 . Time 116 | . . . . . 70 . . . . 46 . Parts Recycled . | . . . . . . . . . . . . Recycled Matter 119 | . 119 . . . . . . . . . . Retrieved Matter . | . . . . . . . . . . . . Retrieved Components 2 | . . . . . . . . . . 2 . Parts Scanalyzed 5 | . . . . . . . . 5 . . . Part Schematics Acquired 5 | . . . . . . . . 5 . . . Parts Damaged 1 | . . . . . . . . 1 . . . Bothacking | -11 -10 -10 -10 -9 -8 -7 -7 -6 -6 -6 -6 ------------ Run | Yrd Mat Min Exi Min Mat Fac DSF Fac Was Fac Low Used RIF Installer . | . . . . . . . . . . . . Robots Hacked . | . . . . . . . . . . . . Non-combat . | . . . . . . . . . . . . Combat . | . . . . . . . . . . . . Robot Hacks Applied . | . . . . . . . . . . . . Relay Couplers Released 3 | . . . . . . . . . . 3 . Programmers 3 | . . . . . . . . . . 3 . Fabnet Peak Effective % . | . . . . . . . . . . . . Robots Rewired . | . . . . . . . . . . . . Allies Hacked . | . . . . . . . . . . . . Hacks Repelled . | . . . . . . . . . . . . Allies | -11 -10 -10 -10 -9 -8 -7 -7 -6 -6 -6 -6 -------- Run | Yrd Mat Min Exi Min Mat Fac DSF Fac Was Fac Low Total Allies 2 | . . . . . . . . . 1 . 1 Largest Group 1 | . . . . . . . . . 1 . 1 Highest-Rated Group 106 | . . . . . . . . . 31 . 106 Highest-Rated Ally 106 | . . . . . . . . . 31 . 106 Initial Warlord ECA Mod 9 | . . . . . . . . 9 9 9 9 Total Orders . | . . . . . . . . . . . . Ally Attacks 6 | . . . . . . . . . 6 . . Total Damage 126 | . . . . . . . . . 126 . . Kills . | . . . . . . . . . . . . Allies Corrupted . | . . . . . . . . . . . . Allies Melted . | . . . . . . . . . . . . Intel | -11 -10 -10 -10 -9 -8 -7 -7 -6 -6 -6 -6 ------- Run | Yrd Mat Min Exi Min Mat Fac DSF Fac Was Fac Low Active Infowar (turns) 2594 | 2 292 584 399 221 431 430 25 . . . 210 Optics 886 | . . . . . 431 430 25 . . . . Terrain 210 | . . . . . . . . . . . 210 Seismic 1498 | 2 292 584 399 221 . . . . . . . Robot Analysis Total . | . . . . . . . . . . . . Derelict Logs Recovered 2 | . . 1 . . . . . . . . 1 Drone Launches . | . . . . . . . . . . . . Drone Recoveries . | . . . . . . . . . . . . Exploration | -11 -10 -10 -10 -9 -8 -7 -7 -6 -6 -6 -6 ------------- Run | Yrd Mat Min Exi Min Mat Fac DSF Fac Was Fac Low Turns Passed 10610 | 98 309 584 399 250 3333 430 352 1645 255 2694 261 Spaces Moved 6684 | 79 430 574 247 154 1480 259 120 1056 213 1525 547 Core 1274 | 79 429 372 . . . . . . . 21 373 Treads 2192 | . 1 202 247 154 1251 259 78 . . . . Legs 2815 | . . . . . . . 42 1056 213 1504 . Wheels 229 | . . . . . 229 . . . . . . Hover . | . . . . . . . . . . . . Flight 174 | . . . . . . . . . . . 174 Fastest Speed 35 | 50 50 50 160 160 90 165 120 114 114 50 35 Average Speed 117 | 54 50 88 160 160 151 165 172 119 114 121 45 Slowest Speed 250 | 100 160 160 160 160 250 165 245 120 114 245 50 Overloaded Moves . | . . . . . . . . . . . . Propulsion Burnouts . | . . . . . . . . . . . . Robots Hopped 1 | . . . . . . . . . . . 1 Potential Cave-ins . | . . . . . . . . . . . . Cave-ins Triggered . | . . . . . . . . . . . . Exploration Rate (%) 46 | 5 42 62 61 45 73 10 46 24 76 44 67 Regions Visited 11 Branch Regions 4 Pre-discovered Areas 2 | . . . . . . . . . . . 2 Known Exits Taken 2 | . . . . . . 1 . . . 1 . Unknown Exits Taken 6 | 1 1 1 1 1 1 . . . . . . Scrap Searched 4 | . . . . 2 . . . . . . 2 Spaces Dug 33 | . . 11 . . . . . 8 4 10 . Terrain Destroyed 253 | . 34 24 . . 19 . . 38 4 134 . Melee . | . . . . . . . . . . . . Projectile 35 | . . . . . 6 . . 13 4 12 . AOE 217 | . 34 24 . . 13 . . 25 . 121 . Terrain Rammed . | . . . . . . . . . . . . Walls Destroyed . | . . . . . . . . . . . . Machines Disabled . | . . . . . . . . . . . . Actions | -11 -10 -10 -10 -9 -8 -7 -7 -6 -6 -6 -6 --------- Run | Yrd Mat Min Exi Min Mat Fac DSF Fac Was Fac Low Total 8492 | 105 488 637 256 158 2122 264 221 1343 221 2119 558 Wait 715 | . 5 18 . . 223 . 39 115 5 306 4 Move 6671 | 78 429 573 246 153 1479 258 119 1056 212 1523 545 Hop 1 | . . . . . . . . . . . 1 Pick Up 92 | 5 3 15 4 . 22 3 3 18 . 18 1 Fast Attach 87 | 6 3 1 . 1 32 . 10 15 . 16 3 Attach 38 | . . 4 . . 10 1 1 8 . 12 2 Detach 16 | 1 . 1 . 1 5 . 2 1 . 4 1 Swap 92 | . 2 3 1 1 31 . 5 20 . 29 . Drop 134 | 2 6 4 5 2 39 2 6 27 . 41 . Fire 569 | 13 27 6 . . 246 . 36 79 4 158 . Melee 17 | . . . . . 17 . . . . . . Ram 4 | . 1 . . . 2 . . . . . 1 Kick 15 | . . . . . . . . 4 . 11 . Crush 40 | . 12 12 . . 16 . . . . . . Escape Stasis 1 | . . . . . . . . . . 1 . Rewire . | . . . . . . . . . . . . Trap . | . . . . . . . . . . . . Miscellaneous . | . . . . . . . . . . . . Route ------- -11/Scrapyard -10/Materials (discovered 2 exits: [*Mat] / [*Min]) -10/Mines (discovered 3 exits: [*Mat] / *Exi / [*Sub]) -10/Exiles -9/Mines -8/Materials -7/Factory -7/DSF -6/Factory -6/Waste -6/Factory (discovered 4 exits: *Low x2 / *Ext x2) -6/Lower Caves History --------- Turn | Location | Event 7 | -11/Scrapyard | Discovered new exit (range 15) 99 | -11/Scrapyard | Entered Materials 232 | -10/Materials | Discovered new exit (range 12) 308 | -10/Materials | Build established: Mutant 386 | -10/Materials | Discovered new exit (range 8) 408 | -10/Materials | Entered Mines 591 | -10/Mines | Joined a pair of Derelicts in attacking an 0b10 outpost 628 | -10/Mines | Found a hidden stash of uninstalled traps 644 | -10/Mines | Discovered new exit (range 14) 930 | -10/Mines | Discovered new exit (range 8) 986 | -10/Mines | Deemed a non-threat by the Exiles lab entrance 986 | -10/Mines | Discovered new exit (range 5) 992 | -10/Mines | Entered Exiles 1032 | -10/Exiles | Met 8R-AWN 1060 | -10/Exiles | Met EX-HEX 1103 | -10/Exiles | Build established: Scavenger-Mutant 1109 | -10/Exiles | Met EX-BIN 1128 | -10/Exiles | Aligned with FarCom system 1130 | -10/Exiles | Given EX-Vault access code 1167 | -10/Exiles | Opened EX-Vault 1184 | -10/Exiles | Found Potential Leg 1186 | -10/Exiles | Found Potential Leg 1237 | -10/Exiles | Exiles lab attacked by MAIN.C 1375 | -10/Exiles | Discovered new exit (range 10) 1391 | -10/Exiles | Left Exiles lab with Potential Leg 1391 | -10/Exiles | Entered Mines 1412 | -9/Mines | Met a Derelict bent on vengeance 1434 | -9/Mines | Assembled infested the area 1439 | -9/Mines | Assisted by a Guerilla fighting off Assembled 1580 | -9/Mines | Discovered new exit (range 15) 1641 | -9/Mines | Entered Materials 1641 | -8/Materials | Evolved 4 slots: Propulsion x1, Utility x3 2339 | -8/Materials | Lost 4 parts (2n1u1w) 2473 | -8/Materials | Destroyed 8 combat bots 2474 | -8/Materials | Lost 4 parts (1p2n1u) 2597 | -8/Materials | Discovered new exit (range 15) 2909 | -8/Materials | Core integrity fell below 50% 3868 | -8/Materials | Build established: Mutant 3998 | -8/Materials | Repaired Broken Beamcaster 4390 | -8/Materials | Garrison activated, responded to threat 4454 | -8/Materials | Lost 6 parts (2p2n2u) 4528 | -8/Materials | Destroyed 14 combat bots 4568 | -8/Materials | Sterilization system engaged 4568 | -8/Materials | Non-combat units ordered to evacuate 4668 | -8/Materials | Combat units ordered to evacuate 4812 | -8/Materials | Build established: Scavenger-Mutant 4868 | -8/Materials | Ambient heat levels rising (+10) 4974 | -8/Materials | Entered Factory 4974 | -7/Factory | Evolved 2 slots: Propulsion x2 5404 | -7/Factory | Identified exit to DSF 5404 | -7/Factory | Entered DSF 5507 | -7/DSF | Additional patrols routed to DSF 5665 | -7/DSF | Sterilization system engaged 5685 | -7/DSF | Ambient heat levels rising (+10) 5700 | -7/DSF | Ambient heat levels rising (+10) 5715 | -7/DSF | Ambient heat levels rising (+10) 5730 | -7/DSF | Ambient heat levels rising (+10) 5734 | -7/DSF | Discovered new exit (range 14) 5745 | -7/DSF | Ambient heat levels rising (+10) 5756 | -7/DSF | Entered Factory 5756 | -6/Factory | Evolved 2 slots: Utility x1, Weapon x1 5892 | -6/Factory | Fabricated Imp. Coolant Injector? 6019 | -6/Factory | Build established: Scavenger-Tank 6347 | -6/Factory | Garrison activated, responded to threat 6787 | -6/Factory | Hacking Suite fried by hacking feedback 7201 | -6/Factory | Discovered new exit (range 10) 7401 | -6/Factory | Sucked down chute 7401 | -6/Factory | Entered Waste 7402 | -6/Waste | Met a frightened Derelict 7443 | -6/Waste | Spotted C-40 Crusher 7465 | -6/Waste | Spotted C-40 Crusher 7466 | -6/Waste | Spotted C-40 Crusher 7468 | -6/Waste | Spotted C-40 Crusher 7550 | -6/Waste | Spotted C-40 Crusher 7632 | -6/Waste | Spotted C-40 Crusher 7639 | -6/Waste | Discovered new exit (range 16) 7656 | -6/Waste | Entered Factory 7731 | -6/Factory | Identified exit to DSF 7899 | -6/Factory | Repaired Flexi-carbon Leg+ 7930 | -6/Factory | Garrison activated, responded to threat 8026 | -6/Factory | Lost 3 parts (1n1u1w) 8275 | -6/Factory | Build established: Hacker-Tank 8458 | -6/Factory | Identified exit to Lower Caves 8458 | -6/Factory | Identified exit to Extension 8845 | -6/Factory | Repaired Enh. Autogun 8879 | -6/Factory | Spotted B-75 Beast 9462 | -6/Factory | Build established: Scavenger-Tank 9848 | -6/Factory | Fabricated Imp. Heavy Machine Gun? 9864 | -6/Factory | Garrison activated, responded to threat 10223 | -6/Factory | Garrison activated, responded to threat 10293 | -6/Factory | Core integrity fell below 50% 10350 | -6/Factory | Core integrity fell below 20% 10350 | -6/Factory | Entered Lower Caves 10357 | -6/Lower Caves | Met a Warlord Commander 10358 | -6/Lower Caves | Learned location of Warlord (-5) 10359 | -6/Lower Caves | Warlord Commander delivered Encrypted Comm Array 10362 | -6/Lower Caves | Found Encrypted Comm Array 10367 | -6/Lower Caves | Lost 12 parts (1p5n3u3w) 10369 | -6/Lower Caves | System corruption reached 10% 10383 | -6/Lower Caves | Encountered a Warlord checkpoint 10541 | -6/Lower Caves | Learned location of Extension (-6) 10591 | -6/Lower Caves | Spotted B-75 Beast 10611 | -6/Lower Caves | Destroyed by B-75 Beast with Heavy Machine Gun Last Messages --------------- 10525_ Burning plasma bursts from the floor. 10525_ S-27 Virus destroyed. 10534_ 7K Y /F|KZECZV=R1SS